Cogmind - Beta 16.1 @@@ ROGUE MODE // 2026.02.15 @ 21:04:24 Player: Kalm Result: Destroyed by Y-45 Defender with Beam Rifle Performance ------------- Evolutions (2) 1000 Regions Visited (4) 800 Robots Destroyed (15) 75 Value Destroyed (541) 541 Prototype IDs (0) 0 Alien Tech Used (0) 0 Bonus (0) 0 TOTAL SCORE: 2416 Bonus ------- None Cogmind --------- Core Integrity 0/550 Matter 118/300 Energy 100/100 System Corruption 0% Temperature Cool (9) Movement Core (100) Ox1 Location -8/Materials Parts ------- > --- POWER (1) -------- (None) > --- PROPULSION (4) --- (None) > --- UTILITY (3) ------ Small Storage Unit > --- WEAPON (3) ------- (None) > --- INVENTORY (8) ---- (None) Peak State ------------ > --- POWER ------------ Nuclear Core > --- PROPULSION ------- Light Treads Light Treads Wheel Wheel > --- UTILITY ---------- Small Storage Unit Advanced Weight Redist. System Reaction Control System > --- WEAPON ----------- Ion Cannon Grenade Launcher Improved Datajack > --- INVENTORY -------- Ion Engine Light Ion Engine Compact Battery Heavy EM Pulse Gun Field Laser Light Assault Rifle Rocket Launcher [Rating: 22] Favorites ----------- Power Ion Engine Engine Ion Engine Power Core Nuclear Core Propulsion Aluminum Leg Treads Light Treads Leg Aluminum Leg Wheel Wheel Flight Unit Flight Unit Utility Small Storage Unit Device Reaction Control System Storage Small Storage Unit Protection Utility Shielding Weapon Grenade Launcher Energy Gun Heavy EM Pulse Gun Energy Cannon Ion Cannon Ballistic Gun Light Assault Rifle Launcher Grenade Launcher Slashing Weapon Blade Saw Special Melee Weapon Improved Datajack Build | -11 -10 -10 -10 -8 ------- Run | Yrd Mat Min Sub Mat Slots Evolved 4 | . . . . 4 Power . | . . . . . Propulsion 2 | . . . . 2 Utility 1 | . . . . 1 Weapon 1 | . . . . 1 Parts Attached 29 | 6 2 4 . 17 Power 4 | 1 . 1 . 2 Engine 3 | 1 . 1 . 1 Core 1 | . . . . 1 Reactor . | . . . . . Propulsion 8 | 2 . 2 . 4 Treads 2 | . . . . 2 Leg 2 | 2 . . . . Wheel 2 | . . . . 2 Hover . | . . . . . Flight 2 | . . 2 . . Utility 6 | 1 1 . . 4 Device 3 | . . . . 3 Storage 2 | 1 . . . 1 Processor . | . . . . . Hackware . | . . . . . Protection 1 | . 1 . . . Artifact . | . . . . . Weapon 11 | 2 1 1 . 7 Energy Gun 3 | 1 . 1 . 1 Energy Cannon 1 | . . . . 1 Ballistic Gun 2 | 1 . . . 1 Ballistic Cannon . | . . . . . Launcher 3 | . 1 . . 2 Special Weapon . | . . . . . Impact Weapon . | . . . . . Slashing Weapon 1 | . . . . 1 Piercing Weapon . | . . . . . Special Melee Weapon 1 | . . . . 1 Unidentified Prototypes . | . . . . . Parts Lost 17 | . . . . 17 Power 3 | . . . . 3 Propulsion 4 | . . . . 4 Utility 3 | . . . . 3 Weapon 7 | . . . . 7 Highest Loss Streak 17 | . . . . 17 To Critical Strikes . | . . . . . Average Backups 6 | 4 7 7 7 6 Power 1 | . 1 1 1 1 Propulsion 2 | 2 4 3 2 . Utility . | . . . . . Weapon 3 | . 2 3 4 4 Tool/Special . | . . . . . Unused Backups 5 | . 2 2 . 1 Power . | . . . . . Propulsion 3 | . 1 2 . . Utility . | . . . . . Weapon 2 | . 1 . . 1 Tool/Special . | . . . . . Average Slot Usage (%) 87 | . 93 95 57 80 Engine 10 | . 14 14 14 6 Treads 1 | . . . . 3 Leg 12 | . 27 23 . . Wheel 5 | . . . . 13 Flight 5 | . . 2 28 9 Device 6 | . . . . 13 Storage 12 | . 14 14 14 10 Protection 6 | . 10 12 . . Energy Gun 7 | . 13 14 . . Energy Cannon 2 | . . . . 6 Launcher 8 | . 10 11 . 6 Special Melee Weapon 3 | . . . . 8 Peak Build Rating 22 | 6 8 8 4 22 Average Rating 10 | 4 6 7 4 15 On Entrance 4 | . 6 8 4 4 Avg Prop Armor Cover (%) 8 | . . . . 8 Naked Turns . | . . . . . Heaviest Build 23 | 13 16 17 8 23 Greatest Support 29 | 20 20 20 8 29 Greatest Overweight (x) 6 | . 1 4 . 6 Average Overweight (x) . | . . . . . Largest Inventory Capacity 8 | 8 8 8 8 8 Average Capacity 7 | 6 8 8 8 8 Most Carried 8 | 6 8 8 7 8 Average Carried 6 | 4 7 7 7 6 Final Capacity 8 | 8 8 8 8 8 Final Carried 8 | 6 8 7 7 . Class Distribution -------------------- 100% | Mutant Dominant Class ---------------- Mutant | -10/Materials Mutant | -10/Mines Mutant | -10/Subcaves Mutant | -8/Materials Resources | -11 -10 -10 -10 -8 ----------- Run | Yrd Mat Min Sub Mat Matter Collected 491 | 253 . 83 . 155 Remotely . | . . . . . Salvage Created 468 | . . 128 . 340 Parts 26 | . . 10 . 16 Haulers Intercepted . | . . . . . Recyclers Shooed . | . . . . . Parts Field Recycled . | . . . . . Retrieved Matter . | . . . . . Parts Self-Destructed . | . . . . . Prevented . | . . . . . Parts Restored . | . . . . . Kills | -11 -10 -10 -10 -8 ------- Run | Yrd Mat Min Sub Mat Combat Hostiles Destroyed 12 | . . 5 . 7 Guns 3 | . . 3 . . Cannons 3 | . . . . 3 AOE 6 | . . 2 . 4 Classes Destroyed 6 | . . 2 . 4 Tunneler 1 | . . . . 1 Watcher 2 | . . . . 2 Swarmer 3 | . . 3 . . Grunt 6 | . . 2 . 4 Sentry 2 | . . . . 2 Hunter 1 | . . . . 1 Best Kill Streak 4 | . . 3 . 4 Combat Bots Only 3 | . . 3 . 3 Max Kills in Single Turn 2 | . . 1 . 2 Gunslinging . | . . . . . Exploded 1 | . . 1 . 1 Melee . | . . . . . Uniques/NPCs Destroyed . | . . . . . Combat | -11 -10 -10 -10 -8 -------- Run | Yrd Mat Min Sub Mat Hostile Shots Fired 152 | . . 22 . 130 Missed 40 | . . 7 . 33 Hits 112 | . . 15 . 97 Projectile 112 | . . 15 . 97 Critical Strikes 6 | . . 1 . 5 Damage Taken 1956 | . . 188 . 1768 Core 596 | . . 43 . 553 Absorbed by Shields . | . . . . . Redirected to Shielding 3 | . . 3 . . Core Remaining (%) 91 | 100 . . 82 . Volleys Fired 35 | . . 14 . 21 Largest 2 | . . 2 . 2 Hottest 96 | . . 85 . 96 Shots Fired 53 | . . 20 . 33 Gun 20 | . . 18 . 2 Cannon 17 | . . . . 17 Launcher 16 | . . 2 . 14 Special . | . . . . . Kinetic . | . . . . . Thermal 19 | . . . . 19 Explosive 16 | . . 2 . 14 Electromagnetic 18 | . . 18 . . Robot Hit Streak 10 | . . 10 . 7 Robot Miss Streak 2 | . . 1 . 2 Penetration Max . | . . . . . Secondary Targets . | . . . . . Shots Hit Robots 39 | . . 14 . 25 Core Hits 37 | . . 10 . 27 Critical Kills . | . . . . . Critical Parts Destroyed . | . . . . . Critical Strikes . | . . . . . Melee Attacks 5 | . . . . 5 Impact . | . . . . . Slashing . | . . . . . Piercing . | . . . . . Sneak Attacks . | . . . . . Combat Hostiles . | . . . . . Follow-up Attacks . | . . . . . Damage Inflicted 1587 | . . 260 . 1327 Guns 215 | . . 180 . 35 Cannons 250 | . . . . 250 Explosions 1112 | . . 80 . 1032 Melee . | . . . . . Ramming 10 | . . . . 10 Kinetic . | . . . . . Thermal 285 | . . . . 285 Explosive 1112 | . . 80 . 1032 Electromagnetic 180 | . . 180 . . Impact . | . . . . . Slashing . | . . . . . Piercing . | . . . . . Highest Corruption . | . . . . . Average Corruption . | . . . . . Corruption Purged . | . . . . . Corruption Blocked . | . . . . . Overload Shots . | . . . . . Overflow Damage 39 | . . . . 39 Projectiles . | . . . . . Explosions 39 | . . . . 39 Melee . | . . . . . Knockbacks . | . . . . . Impact . | . . . . . Kinetic . | . . . . . Secondary . | . . . . . Self-Inflicted Damage 33 | . . . . 33 Shots 2 | . . . . 2 Rammed 4 | . . . . 4 Targets Rammed 4 | . . . . 4 Kicked . | . . . . . Crushed . | . . . . . Highest Temperature 207 | . . 119 . 207 Average Temperature 56 | . . 44 . 63 Received Heat Transfer 777 | . . 93 . 684 Siege Activations . | . . . . . Martial Activations . | . . . . . Shielding Activations . | . . . . . Robots Disrupted . | . . . . . Combat Hostiles . | . . . . . Robots Corrupted . | . . . . . Combat Hostiles . | . . . . . Parts Fried 2 | . . 2 . . Impact Corruptions . | . . . . . Robots Melted . | . . . . . Combat Hostiles . | . . . . . Parts Melted . | . . . . . Heat Transferred 481 | . . . . 481 Parts Sabotaged . | . . . . . Parts Stolen . | . . . . . Parts Stripped . | . . . . . Power Chain Reactions . | . . . . . Alert | -11 -10 -10 -10 -8 ------- Run | Yrd Mat Min Sub Mat Maximum Alert Level 1 | . . . . 1 Low Security (%) 99 | 100 100 100 . 98 Level 1 . | . . . . 1 Level 2 . | . . . . . Level 3 . | . . . . . Level 4 . | . . . . . Level 5 . | . . . . . High Security . | . . . . . Max Security . | . . . . . Peak Influence 215 | . . 93 . 215 Initial 14 | . . . . 14 Average 50 | . . 36 . 91 Influence Increases 579 | . . 168 . 411 Destroy 0b10 Robot/C 240 | . . 100 . 140 Destroy 0b10 Robot/NC 15 | . . . . 15 Destroy Leader 64 | . . 20 . 44 Disable Machine 60 | . . 15 . 45 Destroy Structure 95 | . . 18 . 77 Lose Combat Pursuer 105 | . . 15 . 90 Influence Decreases 448 | . . 105 34 309 Entered New Map 49 | . . . 34 15 Time Decay 229 | . . 105 . 124 Lost Part 170 | . . . . 170 Squads Dispatched 4 | . 1 . . 3 Investigation 1 | . . . . 1 Extermination . | . . . . . Reinforcement 3 | . 1 . . 2 Assault . | . . . . . Garrison . | . . . . . Intercept . | . . . . . Searches Triggered . | . . . . . Construction Impeded . | . . . . . Haulers Reinforced . | . . . . . Active Scanning Responses . | . . . . . Cargo Convoy Interrupts . | . . . . . Stealth | -11 -10 -10 -10 -8 --------- Run | Yrd Mat Min Sub Mat Distress Signals 1 | . . . . 1 Communications Jammed . | . . . . . Distress Signals . | . . . . . Times Spotted 34 | . 1 6 . 27 Peak Tracking Total 9 | . 1 3 . 9 Tactical Retreats 2 | . . 1 . 1 Traps | -11 -10 -10 -10 -8 ------- Run | Yrd Mat Min Sub Mat Traps Triggered 3 | . 2 . . 1 Indirectly . | . . . . . Trap Hack Attempts . | . . . . . Triggered . | . . . . . Disarmed . | . . . . . Reprogrammed . | . . . . . Reused . | . . . . . Traps Extracted . | . . . . . Installed . | . . . . . Triggered . | . . . . . Machines | -11 -10 -10 -10 -8 ---------- Run | Yrd Mat Min Sub Mat Machines Disabled 4 | . . 1 . 3 Max in Single Turn 1 | . . 1 . 1 Machines Repaired . | . . . . . Machines Dismantled . | . . . . . Machines Sabotaged . | . . . . . Overloaded Fab Kills . | . . . . . Hacking | -11 -10 -10 -10 -8 --------- Run | Yrd Mat Min Sub Mat Machines Accessed 2 | . . . . 2 Terminals 2 | . . . . 2 Fabricators . | . . . . . Repair Stations . | . . . . . Recycling Units . | . . . . . Scanalyzers . | . . . . . Garrison Access . | . . . . . Total Hacks 3 | . . . . 3 Successful 1 | . . . . 1 Failed 2 | . . . . 2 Catastrophic . | . . . . . Database Lockouts . | . . . . . Manual 1 | . . . . 1 Terminals 3 | . . . . 3 Fabricators . | . . . . . Repair Stations . | . . . . . Recycling Units . | . . . . . Scanalyzers . | . . . . . Garrison Access . | . . . . . Terminal Hacks 1 | . . . . 1 Zone Layout 1 | . . . . 1 Fabricator Hacks . | . . . . . Repair Station Hacks . | . . . . . Recycling Unit Hacks . | . . . . . Scanalyzer . | . . . . . Garrison Access Hacks . | . . . . . Unauthorized Hacks . | . . . . . Terminals . | . . . . . Fabricators . | . . . . . Repair Stations . | . . . . . Recycling Units . | . . . . . Scanalyzers . | . . . . . Garrison Access . | . . . . . Data Cores Recovered . | . . . . . Used . | . . . . . Hacking Detections 1 | . . . . 1 Full Trace Events . | . . . . . Feedback Events . | . . . . . Feedback Blocked . | . . . . . Robot Schematics Acquired . | . . . . . Robots Built . | . . . . . Authchips . | . . . . . Time . | . . . . . Total Robot Build Rating . | . . . . . Part Schematics Acquired . | . . . . . Parts Built . | . . . . . Authchips . | . . . . . Time . | . . . . . Total Part Build Rating . | . . . . . Part Studies Acquired . | . . . . . Parts Repaired . | . . . . . Time . | . . . . . Parts Recycled . | . . . . . Recycled Matter . | . . . . . Retrieved Matter . | . . . . . Retrieved Components . | . . . . . Parts Scanalyzed . | . . . . . Part Schematics Acquired . | . . . . . Parts Damaged . | . . . . . Bothacking | -11 -10 -10 -10 -8 ------------ Run | Yrd Mat Min Sub Mat Used RIF Installer . | . . . . . Robots Hacked 3 | . . . . 3 Non-combat 1 | . . . . 1 Combat 2 | . . . . 2 Robot Hacks Applied 3 | . . . . 3 parse_system 3 | . . . . 3 Relay Couplers Released . | . . . . . Fabnet Peak Effective % . | . . . . . Robots Rewired . | . . . . . Allies Hacked . | . . . . . Hacks Repelled . | . . . . . Allies | -11 -10 -10 -10 -8 -------- Run | Yrd Mat Min Sub Mat Total Allies . | . . . . . Largest Group . | . . . . . Highest-Rated Group . | . . . . . Highest-Rated Ally . | . . . . . Total Orders . | . . . . . Ally Attacks . | . . . . . Total Damage . | . . . . . Kills . | . . . . . Allies Corrupted . | . . . . . Allies Melted . | . . . . . Intel | -11 -10 -10 -10 -8 ------- Run | Yrd Mat Min Sub Mat Active Infowar (turns) 54 | . . . . 54 ECM 54 | . . . . 54 Robot Analysis Total . | . . . . . Derelict Logs Recovered 1 | . . 1 . . Drone Launches . | . . . . . Drone Recoveries . | . . . . . Exploration | -11 -10 -10 -10 -8 ------------- Run | Yrd Mat Min Sub Mat Turns Passed 857 | 85 133 261 19 359 Spaces Moved 601 | 61 98 194 52 196 Core 27 | 4 . 1 . 22 Treads . | . . . . . Legs 313 | 57 98 158 . . Wheels 143 | . . . . 143 Hover . | . . . . . Flight 118 | . . 35 52 31 Fastest Speed 37 | 50 120 37 37 37 Average Speed 99 | 115 122 110 37 90 Slowest Speed 350 | 120 190 280 37 350 Overloaded Moves . | . . . . . Propulsion Burnouts . | . . . . . Robots Hopped . | . . . . . Potential Cave-ins . | . . . . . Cave-ins Triggered . | . . . . . Exploration Rate (%) 20 | 4 20 48 8 24 Regions Visited 4 Branch Regions 2 Pre-discovered Areas . | . . . . . Known Exits Taken . | . . . . . Unknown Exits Taken 4 | 1 1 1 1 . Scrap Searched . | . . . . . Spaces Dug . | . . . . . Terrain Destroyed 93 | . . 18 . 75 Melee . | . . . . . Projectile 1 | . . . . 1 AOE 92 | . . 18 . 74 Terrain Rammed . | . . . . . Walls Destroyed . | . . . . . Machines Disabled . | . . . . . Actions | -11 -10 -10 -10 -8 --------- Run | Yrd Mat Min Sub Mat Total 799 | 73 110 223 51 342 Wait 77 | . . . . 77 Move 597 | 60 97 193 51 196 Hop . | . . . . . Pick Up 20 | 7 5 . . 8 Fast Attach 16 | 5 4 2 . 5 Attach 16 | 1 1 1 . 13 Detach 4 | . . 3 . 1 Swap 9 | . 1 3 . 5 Drop 16 | . 2 7 . 7 Fire 35 | . . 14 . 21 Melee 5 | . . . . 5 Ram 4 | . . . . 4 Kick . | . . . . . Crush . | . . . . . Escape Stasis . | . . . . . Rewire . | . . . . . Trap . | . . . . . Miscellaneous . | . . . . . Route ------- -11/Scrapyard -10/Materials -10/Mines (discovered 2 exits: Exi / [*Sub]) -10/Subcaves -8/Materials History --------- Turn | Location | Event 4 | -11/Scrapyard | Discovered new exit (range 15) 86 | -11/Scrapyard | Entered Materials 189 | -10/Materials | Discovered new exit (range 16) 219 | -10/Materials | Entered Mines 310 | -10/Mines | Build established: Mutant 399 | -10/Mines | Identified exit to Exiles 479 | -10/Mines | Discovered new exit (range 6) 480 | -10/Mines | Entered Subcaves 498 | -10/Subcaves | Discovered new exit (range 5) 499 | -10/Subcaves | Entered Materials 499 | -8/Materials | Evolved 4 slots: Propulsion x2, Utility x1, Weapon x1 811 | -8/Materials | Core integrity fell below 50% 847 | -8/Materials | Core integrity fell below 20% 858 | -8/Materials | Destroyed by Y-45 Defender with Beam Rifle Last Messages --------------- Nuclear Core destroyed. Acquired 4 matter. [Achievement: Hydra] Jacked Y-45 Defender... >>parse_system Reading system data... Jacked Y-45 Defender... Command string: trojan No effect. Slammed into Y-45 Defender. Ion Engine destroyed. Jacked G-47 Trooper... >>parse_system Reading system data... Lgt. Ion Engine destroyed. Com. Battery destroyed. Jacked G-47 Trooper... Slammed into G-47 Trooper. Slammed into Y-45 Defender. Imp. Datajack destroyed. Map ----- +----------------------------------------------------+ | ???????????????????# #??????????#???????????? | | ???????????????????? ##???????? #???????????? | | ????????????????????# %[ ##????? #???????????? | | ??????????????????### ##### ?????????????? | | ??????????????????# = ???????????????? | | ???????????????????# |! ?????????????????? | | ???????????????????## ! ???????????????????? | | ???????????????????# #???????????????????#+ | | ????????????????????## #???????????????????? | | ?????????????????????#### %#???????????????????? | | ????????????????????????# ##???????????????????? | | ????????????????????????# #?????????????????????# | | ????????????????????????# #?????????????????????# | | ????????????????????????# #??????????????????#### | | ????????????????????????# #??????????????????# | | ????????????????????????# #??????????????????# | | ????????????????????????# #?????????????????## | | ?????????????############ ##??????????????### | | ?????????????# #g #????###?####### # | | ?????????????# # g###### ### ]] + ! | | ?????????????# #gg # ![! # ]"### | | ?????????????# /gYY# """ # "#?# # | | ?????????????# #g # """ # "#?###### | | ?????????????# """"" # # """ #! T#??????# | | ?????????????# """"" # # # "#??????## | | ?????????????# """"" # @ #"" """ + "#???????? | | ?????????????########### #"T """ # "#???????? | | ???????????????????????# #"" """ #! #???????? | | ???????????????????????# + ######???????? | | ???????????????????????# ##########????????????? | | ???????????????????????# ## #???????????????? | | ???????????????????????# ## #???????????????? | | ???????????????????????# ## #########???????? | | ???????????????????????# ## ## """ #???????? | | ???????????????????????# ## ## "R" #???????? | | ???????????????????????# o## ## " " #???????? | | ??????????????########## ## ## #???????? | | ?????????????? ## ## ## #???????? | | ?????????????? ## ## ## #???????? | | ?????????????? # r ###+######+######????? | | ?????????????? # ????? | | ?????????????? + ????? | | ???????????????????????? ??????????????????????? | | ?????????????????????????????????????????????????? | | ?????????????????????????????????????????????????? | | ?????????????????????????????????????????????????? | | ?????????????????????????????????????????????????? | | ?????????????????????????????????????????????????? | | ?????????????????????????????????????????????????? | | ?????????????????????????????????????????????????? | +----------------------------------------------------+ Best States ------------- Heat Dissipation 31 Energy Generation 14 Energy Capacity 450 Matter Stores 293 Matter Capacity 300 Sight Range 16 Terrain Scan Density 10 ECM Strength 1 Additional Mass Support 9 Utility Shielding 33 Evasion (%) 62 Item Schematics ----------------- None Robot Schematics ------------------ None Fabricated ------------ Nothing Repaired ---------- Nothing Studied --------- None Alien Tech Used ----------------- None Achievements -------------- Hydra Challenges ------------ None Game ------ Seed ShiftHardcellManipulator Manual? 0 Play Time 00:16:30 Cumulative 14.8 hours Start 2026.02.15 @ 20:48:09 End 2026.02.15 @ 21:04:24 Sessions 1 Manual Loads 0 Difficulty Rogue Special Mode None Game No. 23 Rogue 23 Adventurer 0 Explorer 0 Win Type - Total 0 Types 0/0/0/0/0/0/0/0/0/0 Lore% 17 Gallery% 18 Achievement% 11 Wizard Run 0 Options --------- Layout 1 ASCII 0 Keyboard 0 Movement Mouse Keybinds 0 Fullscreen 1 Font 32/SmallcapsGlow Map View 50x35 Zoom Use 0% Tactical HUD 0 Map Filters NONE Filters NONE Steam 1 RUN: 3425fa8c-c0ad-42b2-b2f8-6a8d583b4365